bitfinex/quotes_BTCUSD_20250119
["timestamp","ask_amount","ask_price","bid_price","bid_amount"]
[1737321949654,0.47961449,105230.0,105210.0,0.285139]
[1737321950000,0.095039,105220.0,105200.0,0.465774]
[1737321950206,0.095039,105220.0,105210.0,0.095047]
[1737321950540,0.48051313,105230.0,105210.0,0.285142]
[1737321951065,0.38051013,105230.0,105210.0,0.285142]
[1737321951348,0.67058013,105230.0,105210.0,0.095047]
[1737321952409,0.09593564,105230.0,105210.0,0.28513]
[1737321952416,0.28599564,105230.0,105210.0,0.28513]
[1737321952699,0.57553313,105230.0,105200.0,0.5612574]
[1737321952986,0.09504,105220.0,105200.0,0.4662034]
[1737321953232,0.095038,105220.0,105210.0,0.095046]
[1737321953437,0.280116,105220.0,105200.0,0.4662034]
[1737321953652,0.57468249,105220.0,105200.0,0.0954784]
[1737321953861,0.66972749,105220.0,105200.0,0.28856385]
[1737321954277,0.28956049,105210.0,105200.0,0.00340085]
[1737321955297,0.18956049,105210.0,105200.0,0.00340085]
[1737321955499,0.575209,105220.0,105200.0,0.095052]
[1737321955718,0.66972249,105220.0,105200.0,0.285164]
[1737321955920,0.56972249,105220.0,105200.0,0.285164]
[1737321956135,0.66472249,105220.0,105200.0,0.285164]
[1737321956987,0.285143,105210.0,105190.0,0.43713825]
[1737321957213,0.47525,105210.0,105190.0,0.24701825]
[1737321957407,0.66976949,105210.0,105190.0,0.095059]
[1737321957609,0.095057,105200.0,105190.0,0.095059]
[1737321957811,0.095057,105200.0,105190.0,0.09981549]
[1737321958191,0.095057,105200.0,105190.0,0.00475649]
[1737321958605,0.095057,105200.0,105190.0,0.09982249]
[1737321958814,0.09555737,105200.0,105190.0,0.00475649]
[1737321959815,0.29007086,105200.0,105190.0,0.00475649]
[1737321960641,0.00050037,105200.0,105190.0,0.09982249]
[1737321960859,0.79555737,105200.0,105190.0,0.00475649]
[1737321961264,0.70050037,105200.0,105190.0,0.19316544]
[1737321961791,0.70050037,105200.0,105190.0,0.09982249]
[1737321961998,0.09556537,105200.0,105180.0,0.295204]
[1737321962121,0.19062437,105200.0,105190.0,0.0004284]
[1737321962345,0.28568137,105200.0,105190.0,0.0004284]
[1737321962583,0.48019486,105200.0,105190.0,0.0004284]
[1737321963155,1.26623555,105200.0,105190.0,0.0004284]
[1737321963357,1.16079486,105200.0,105190.0,0.0004284]
[1737321963541,1.31079486,105200.0,105190.0,0.0004284]
[1737321963942,0.61079486,105200.0,105190.0,0.0004284]
[1737321966074,0.56079486,105200.0,105190.0,0.0004284]
[1737321966273,0.46079486,105200.0,105190.0,0.0004284]
[1737321966529,0.195066,105190.0,105180.0,0.00987624]
[1737321966706,0.28957949,105190.0,105180.0,0.00987624]
[1737321967327,0.28957949,105190.0,105180.0,0.01463375]
[1737321967736,0.224502,105150.0,105140.0,0.0016287]
[1737321967940,0.46901549,105150.0,105140.0,0.0016287]
[1737321968141,0.70098914,105150.0,105140.0,0.0016287]
[1737321968343,0.80098914,105150.0,105140.0,0.0016287]
[1737321968741,1.01898914,105150.0,105140.0,0.00460362]
[1737321968985,1.0194892,105150.0,105140.0,0.00460362]
[1737321969115,0.46447555,105150.0,105140.0,0.00460362]
[1737321969329,0.56447555,105150.0,105140.0,0.00460362]
[1737321969545,0.5977372,105150.0,105140.0,0.00460362]
[1737321969950,1.6027772,105150.0,105140.0,0.00460362]
[1737321970148,1.7527772,105150.0,105140.0,0.00460362]
[1737321970347,2.03628095,105150.0,105140.0,0.0016287]
[1737321970633,2.03628095,105150.0,105120.0,0.0016475]
[1737321970634,0.15,105140.0,105120.0,0.0016475]
[1737321970816,0.19082273,105130.0,105120.0,0.0016475]
[1737321971028,0.89082273,105130.0,105120.0,0.0016475]
[1737321971231,0.89451349,105130.0,105120.0,0.0016475]
[1737321971382,0.1,105140.0,105130.0,0.09512]
[1737321971584,0.09451349,105140.0,105130.0,0.28535]
[1737321971871,0.54156578,105150.0,105120.0,0.1918905]
[1737321972085,0.54097927,105150.0,105130.0,0.285352]
[1737321972263,0.095112,105140.0,105120.0,0.4772595]
[1737321972468,0.095112,105140.0,105110.0,0.340271]
[1737321972673,0.40201922,105150.0,105110.0,0.09451349]
[1737321972825,0.40201922,105150.0,105100.0,0.000429]
[1737321972826,0.095138,105110.0,105100.0,0.000429]
[1737321973027,0.29084075,105110.0,105100.0,0.000429]
[1737321973234,0.28965149,105110.0,105100.0,0.000429]
[1737321974158,0.29015124,105110.0,105100.0,0.000429]
[1737321974653,0.00049975,105110.0,105100.0,0.095576]
[1737321975241,0.09563775,105110.0,105100.0,0.095576]
[1737321975775,0.00049975,105110.0,105100.0,0.095576]
[1737321977943,0.09563775,105110.0,105100.0,0.000429]
[1737321978429,0.00049975,105110.0,105100.0,0.095576]
[1737321978862,0.09563775,105110.0,105100.0,0.000429]
[1737321979071,0.29015124,105110.0,105100.0,0.000429]
[1737321980432,0.00049975,105110.0,105100.0,0.43343244]
[1737321980641,0.09563775,105110.0,105100.0,0.000429]
[1737321981049,0.19563775,105110.0,105100.0,0.000429]
[1737321983113,0.89563775,105110.0,105100.0,0.000429]
[1737321983925,0.99015124,105110.0,105100.0,0.000429]
[1737321984908,0.89501324,105110.0,105090.0,0.00050257]
[1737321985117,0.095147,105100.0,105090.0,0.00050257]
[1737321985772,0.09462005,105100.0,105090.0,0.00050257]
[1737321986173,0.29032287,105100.0,105090.0,0.00050257]
[1737321986370,0.28913354,105100.0,105090.0,0.00050257]
[1737321987794,0.98913354,105100.0,105090.0,0.00050257]
[1737321988251,0.88913354,105100.0,105090.0,0.00050257]
[1737321989158,0.78966049,105100.0,105090.0,0.00050257]
[1737321989279,0.18966049,105100.0,105090.0,0.00050257]
[1737321989481,0.19085002,105100.0,105090.0,0.00050257]
[1737321990310,0.195147,105100.0,105090.0,0.00050257]
[1737321990739,0.18966049,105100.0,105090.0,0.00050257]
[1737321990950,0.1908499,105100.0,105090.0,0.00050257]
[1737321991699,0.19633649,105100.0,105090.0,0.00050257]
[1737321991882,0.19084998,105100.0,105090.0,0.00050257]
[1737321992448,0.99084998,105100.0,105090.0,0.00050257]
[1737321992650,0.98966049,105100.0,105090.0,0.00050257]
[1737321994668,0.88966049,105100.0,105090.0,0.00050257]
[1737321995321,0.18966049,105100.0,105090.0,0.00050257]
[1737321995522,0.19085008,105100.0,105090.0,0.00050257]
[1737321996044,0.31755008,105100.0,105090.0,0.00050257]
[1737321996252,0.63834085,105100.0,105090.0,0.00050257]
[1737321996456,0.78834085,105100.0,105090.0,0.00050257]
[1737321996702,1.03285434,105100.0,105080.0,0.07105714]
[1737321996903,0.771874,105070.0,105060.0,0.042889]
[1737321997239,0.88938749,105070.0,105060.0,0.042889]
[1737321997399,0.89922749,105070.0,105060.0,0.023852]
[1737321997622,0.99374098,105070.0,105060.0,0.023852]
[1737321997924,0.268183,105060.0,105050.0,0.00093761]
[1737321998080,0.668192,105050.0,105040.0,0.0160398]
[1737321998285,0.91270549,105050.0,105040.0,0.0160398]
[1737321998497,0.91270549,105050.0,105040.0,0.01821593]
[1737321998707,1.00721898,105050.0,105040.0,0.01821593]
[1737321999289,0.218201,105040.0,105030.0,0.000629]
[1737321999483,0.31271449,105040.0,105030.0,0.000629]
[1737321999690,0.61271449,105040.0,105030.0,0.000629]
[1737321999889,0.59071449,105040.0,105030.0,0.000629]
[1737322000069,0.68522798,105040.0,105030.0,0.000629]
[1737322000778,0.69071449,105040.0,105030.0,0.000629]
[1737322000980,0.59071449,105040.0,105030.0,0.000629]
[1737322001223,0.26771449,105040.0,105030.0,0.000629]
[1737322002076,0.28971449,105040.0,105030.0,0.000629]
[1737322002440,0.28492749,105040.0,105020.0,0.00025029]
[1737322002660,0.1909139,105030.0,105020.0,0.00025029]
[1737322002811,0.2919139,105030.0,105020.0,0.00025029]
[1737322003009,0.59072349,105030.0,105020.0,0.00025029]
[1737322003863,0.095229,105010.0,105000.0,0.01103]
[1737322004116,0.190933,105010.0,105000.0,0.01103]
[1737322004319,0.4388606,105010.0,105000.0,0.01103]
[1737322004511,0.43767009,105010.0,105000.0,0.01103]
[1737322004852,0.36144249,105010.0,105000.0,0.01103]
[1737322005064,0.36194132,105010.0,105000.0,0.01103]
[1737322005267,1.03994132,105010.0,105000.0,0.01103]
[1737322005496,0.1,104950.0,104940.0,0.11667545]
[1737322006088,0.04929678,104950.0,104940.0,0.02138445]
[1737322006311,0.17822174,104950.0,104940.0,0.02138445]
[1737322006702,0.17872026,104950.0,104940.0,0.02138445]
[1737322006910,0.17872026,104950.0,104940.0,0.01112084]
[1737322007383,0.1775292,104950.0,104940.0,0.01112084]
[1737322007610,0.17872035,104950.0,104940.0,0.01112084]
[1737322007811,0.1730292,104950.0,104940.0,0.01112084]
[1737322008996,0.195305,104930.0,104910.0,0.285957]
[1737322009203,0.48042149,104930.0,104900.0,0.3051898]
[1737322009413,0.48042149,104930.0,104900.0,0.28597]
[1737322009622,0.48042149,104930.0,104900.0,0.095327]
[1737322009623,0.195314,104920.0,104900.0,0.095327]
[1737322010269,0.385936,104920.0,104890.0,0.381323]
[1737322010515,0.385936,104920.0,104880.0,0.20982826]
[1737322010516,0.285963,104910.0,104880.0,0.30516826]
[1737322010717,0.09533,104900.0,104880.0,0.09534]
[1737322010925,0.57580449,104910.0,104890.0,0.00476967]
[1737322011174,0.48047849,104910.0,104890.0,0.00476967]
[1737322011390,0.1,104900.0,104890.0,0.00476967]
[1737322011795,0.10049821,104900.0,104890.0,0.00692442]
[1737322012172,0.1950117,104900.0,104890.0,0.00692442]
[1737322012379,0.2903397,104900.0,104890.0,0.00215475]
[1737322012583,0.1903397,104900.0,104890.0,0.00215475]
[1737322013026,0.34446847,104900.0,104890.0,0.00215475]
[1737322013229,0.2682397,104900.0,104890.0,0.00215475]
[1737322013432,0.3173397,104900.0,104890.0,0.00215475]
[1737322013843,0.3403397,104900.0,104890.0,0.00215475]
[1737322014047,0.3173397,104900.0,104890.0,0.00215475]
[1737322014802,0.095337,104890.0,104880.0,0.00476967]
[1737322015031,0.18985049,104890.0,104880.0,0.00476967]
[1737322015455,0.290712,104870.0,104840.0,0.00476967]
[1737322015662,0.290712,104870.0,104840.0,0.10015067]
[1737322015663,0.28988249,104860.0,104840.0,0.10015067]
[1737322015867,0.19451349,104860.0,104840.0,0.10015067]
[1737322016074,0.48062049,104860.0,104840.0,0.00476967]
[1737322016278,0.1,104850.0,104840.0,0.00476967]
[1737322016472,0.195374,104850.0,104840.0,0.00476967]
[1737322016596,0.1,104850.0,104840.0,0.00476967]
[1737322017003,0.19501109,104850.0,104830.0,0.27636607]
[1737322017191,0.1004976,104850.0,104840.0,0.095383]
[1737322017400,0.1004976,104850.0,104840.0,0.33872595]
[1737322017773,0.0004976,104850.0,104840.0,0.33872595]
[1737322018064,0.0004976,104850.0,104840.0,0.51453944]
[1737322018267,0.0004976,104850.0,104840.0,0.68391155]
[1737322018428,0.0004976,104850.0,104840.0,0.7772545]
[1737322018626,0.1,104900.0,104870.0,0.15]
[1737322018837,0.1779,104910.0,104890.0,0.095337]
[1737322019016,0.19451349,104910.0,104900.0,0.095328]
[1737322019215,0.1,104920.0,104900.0,0.095328]
[1737322019465,0.227,104930.0,104910.0,0.095319]
[1737322019614,0.227,104930.0,104900.0,0.476609]
[1737322019615,0.1,104920.0,104900.0,0.476609]
[1737322019810,0.195314,104920.0,104890.0,0.286005]
[1737322020012,0.195319,104910.0,104880.0,0.381362]
[1737322020372,0.48050149,104900.0,104870.0,0.286051]
[1737322020566,0.1,104890.0,104840.0,0.190749]
[1737322020771,0.1,104890.0,104870.0,0.0001487]
[1737322020772,0.195347,104880.0,104870.0,0.0001487]
[1737322021111,0.18986049,104880.0,104870.0,0.0001487]
[1737322022155,0.321241,104890.0,104870.0,0.0031308]
[1737322022363,0.41575449,104890.0,104870.0,0.0984848]
[1737322022587,0.28985449,104890.0,104880.0,0.00159063]
[1737322022792,0.98985449,104890.0,104880.0,0.00159063]
[1737322023324,0.195347,104880.0,104870.0,0.0031308]
[1737322023524,0.18986049,104880.0,104870.0,0.0031308]
[1737322023650,0.18986049,104880.0,104840.0,0.00110409]
[1737322023651,0.1,104860.0,104840.0,0.00110409]
[1737322023854,0.386087,104870.0,104840.0,0.28724909]
[1737322024082,0.67132849,104870.0,104840.0,0.38263309]
[1737322024304,0.67132849,104870.0,104850.0,0.095374]
[1737322024550,0.67132849,104870.0,104840.0,0.47800909]
[1737322024757,0.67132849,104870.0,104840.0,0.28724409]
[1737322024758,0.095366,104860.0,104840.0,0.28724409]
[1737322024976,0.095365,104860.0,104840.0,0.28724409]
[1737322025191,0.67132849,104870.0,104840.0,0.47800809]
[1737322025407,0.1908523,104880.0,104840.0,0.47800809]
[1737322025408,0.1,104850.0,104840.0,0.00110409]
[1737322025825,0.09451349,104860.0,104840.0,0.19185609]
[1737322026033,0.386078,104870.0,104850.0,0.095373]
[1737322026292,0.19451349,104870.0,104850.0,0.095373]
[1737322026504,0.19451349,104870.0,104850.0,0.28612]
[1737322026726,0.19451349,104870.0,104850.0,0.190747]
[1737322026934,0.1001493,104880.0,104860.0,0.286083]
[1737322027150,0.0001493,104880.0,104870.0,0.095356]
[1737322027580,0.0001493,104880.0,104870.0,0.245356]
[1737322028250,0.0001493,104880.0,104870.0,0.095356]
[1737322028453,0.0001493,104880.0,104870.0,0.245356]
[1737322028660,0.0001493,104880.0,104870.0,0.095356]
[1737322029081,0.0001493,104880.0,104860.0,0.38058649]
[1737322029324,0.0001493,104880.0,104860.0,0.095358]
[1737322029526,0.0954613,104880.0,104860.0,0.095364]
[1737322029734,0.19462279,104880.0,104860.0,0.095364]
[1737322029946,0.48066579,104880.0,104860.0,0.095364]
[1737322030163,0.28997179,104880.0,104860.0,0.095364]
[1737322030376,0.1001093,104880.0,104870.0,0.095356]
[1737322030589,0.0001093,104880.0,104870.0,0.095356]
[1737322030795,0.0001093,104880.0,104870.0,0.48536055]
[1737322031000,0.0001093,104880.0,104870.0,0.63536055]
[1737322031427,0.1,104920.0,104910.0,0.095319]
[1737322031651,0.2238,104940.0,104920.0,0.19062]
[1737322031856,0.10015035,104940.0,104930.0,0.095301]
[1737322032063,0.00015035,104940.0,104930.0,0.095301]
[1737322032912,0.00015035,104940.0,104910.0,0.43513549]
[1737322032913,0.00015035,104940.0,104910.0,0.18983049]
[1737322033119,0.00015035,104940.0,104900.0,0.285972]
[1737322033120,0.290603,104930.0,104900.0,0.285972]
[1737322033294,0.48042049,104930.0,104900.0,0.285972]
[1737322033500,0.095312,104920.0,104900.0,0.095324]
[1737322033706,0.48045749,104920.0,104890.0,0.190675]
[1737322033958,0.38514149,104920.0,104890.0,0.095333]
[1737322034171,0.28982749,104920.0,104900.0,0.095328]
[1737322034379,0.1,104920.0,104910.0,0.095319]
[1737322034579,0.1,104930.0,104920.0,0.09531]
[1737322034809,0.10015035,104940.0,104910.0,0.476583]
[1737322035004,0.195303,104930.0,104910.0,0.285945]
[1737322035181,0.385907,104930.0,104910.0,0.095318]
[1737322035416,0.195303,104930.0,104910.0,0.095318]
[1737322035615,0.385965,104910.0,104880.0,0.286029]
[1737322035823,0.1,104910.0,104890.0,0.381348]
[1737322036028,0.46424,104920.0,104890.0,0.190673]
[1737322036232,0.385962,104910.0,104880.0,0.626717]
[1737322036434,0.19533,104900.0,104870.0,0.286052]
[1737322036675,0.1,104890.0,104870.0,0.286058]
[1737322036877,0.195338,104890.0,104870.0,0.095351]
[1737322037065,0.195338,104890.0,104870.0,0.286062]
[1737322037196,0.28985149,104890.0,104870.0,0.286062]
[1737322037401,0.17281349,104880.0,104850.0,0.1504299]
[1737322037600,0.195365,104860.0,104850.0,0.0005792]
[1737322038005,0.18987849,104860.0,104850.0,0.0005792]
[1737322038257,0.38537849,104860.0,104850.0,0.0005792]
[1737322038567,0.46367849,104860.0,104850.0,0.0005792]
[1737322038869,0.43667849,104860.0,104850.0,0.0005792]
[1737322039096,0.43119198,104860.0,104850.0,0.0005792]
[1737322039312,0.61367849,104860.0,104850.0,0.0005792]
[1737322039486,0.46367849,104860.0,104850.0,0.0005792]
[1737322039714,0.195401,104820.0,104810.0,0.0016586]
[1737322039847,0.36761449,104820.0,104810.0,0.0016586]
[1737322040048,0.26761449,104820.0,104810.0,0.0016586]
[1737322040477,0.37798586,104820.0,104810.0,0.0016586]
[1737322040675,0.31541449,104820.0,104810.0,0.0016586]
[1737322040877,0.31541449,104820.0,104810.0,0.00464142]
[1737322041199,0.31556459,104820.0,104810.0,0.00464142]
[1737322041399,0.31236459,104820.0,104810.0,0.0016586]
[1737322043206,0.41236459,104820.0,104810.0,0.0016586]
[1737322043400,0.0001501,104820.0,104810.0,0.0970686]
[1737322043737,0.0001501,104820.0,104810.0,0.34158209]
[1737322043972,0.0001501,104820.0,104810.0,0.19158209]
[1737322044170,0.095384,104840.0,104820.0,0.2862]
[1737322044320,0.095392,104830.0,104820.0,0.0004976]
[1737322044524,0.195392,104830.0,104820.0,0.0004976]
[1737322044733,0.19451349,104830.0,104820.0,0.0004976]
[1737322044941,0.28990549,104830.0,104820.0,0.0004976]
[1737322045447,0.18990549,104830.0,104820.0,0.0004976]
[1737322045851,0.26760549,104830.0,104820.0,0.0004976]
[1737322046595,0.36760549,104830.0,104820.0,0.00348166]
[1737322046808,0.195392,104830.0,104820.0,0.00348166]
[1737322047198,0.195392,104830.0,104820.0,0.09888266]
[1737322047199,0.1,104830.0,104820.0,0.09888266]
[1737322047403,0.1,104840.0,104820.0,0.28968466]
[1737322047602,0.195384,104840.0,104820.0,0.2867006]
[1737322047974,0.28990549,104830.0,104820.0,0.0004976]
[1737322048179,0.18990549,104830.0,104820.0,0.0004976]
[1737322048382,0.23770549,104830.0,104820.0,0.0004976]
[1737322048715,0.26070549,104830.0,104820.0,0.0004976]
[1737322049518,0.26070549,104830.0,104820.0,0.0009274]
[1737322049991,0.41070549,104830.0,104820.0,0.0009274]
[1737322050134,0.66070549,104830.0,104820.0,0.0009274]
[1737322050347,0.74270549,104830.0,104820.0,0.0009274]
[1737322050545,0.59270549,104830.0,104820.0,0.00222915]
[1737322050753,0.68721898,104830.0,104820.0,0.0009274]
[1737322050949,0.83721898,104830.0,104820.0,0.0009274]
[1737322051151,0.49270549,104830.0,104820.0,0.0009274]
[1737322051954,0.64270549,104830.0,104820.0,0.00222915]
[1737322052157,0.64270549,104830.0,104820.0,0.0009274]
[1737322052522,0.74270549,104830.0,104820.0,0.0009274]
[1737322053398,0.64270549,104830.0,104820.0,0.0005484]
[1737322053584,0.74270549,104830.0,104820.0,0.0005484]
[1737322053915,0.61037849,104830.0,104820.0,0.0005484]
[1737322054138,0.58277049,104830.0,104820.0,0.0005484]
[1737322054355,0.28277049,104830.0,104820.0,0.0005484]
[1737322054731,0.28277049,104830.0,104820.0,0.0205484]
[1737322054935,0.69128034,104830.0,104820.0,0.0014684]
[1737322055136,0.69128034,104830.0,104820.0,4e-07]
[1737322055337,0.79128034,104830.0,104820.0,4e-07]
[1737322055685,0.273,104820.0,104810.0,1e-06]
[1737322055885,0.76291449,104820.0,104810.0,1e-06]
[1737322056439,0.91291449,104820.0,104810.0,1e-06]
[1737322057499,0.518419,104800.0,104790.0,1e-07]
[1737322057741,0.61293249,104800.0,104790.0,0.00130333]
[1737322058668,0.55744598,104800.0,104790.0,4e-07]
[1737322058863,0.268447,104770.0,104760.0,0.0102285]
[1737322059083,0.36296049,104770.0,104760.0,5e-07]
[1737322059313,0.65876049,104770.0,104760.0,5e-07]
[1737322059503,0.25876049,104770.0,104760.0,5e-07]
[1737322060087,0.25926116,104770.0,104760.0,5e-07]
[1737322060913,0.61818862,104770.0,104760.0,5e-07]
[1737322061114,0.71818862,104770.0,104760.0,5e-07]
[1737322061813,0.80926116,104770.0,104760.0,5e-07]
[1737322062014,0.70926116,104770.0,104760.0,5e-07]
[1737322062218,0.25926116,104770.0,104760.0,5e-07]
[1737322062425,0.21346116,104770.0,104760.0,5e-07]
[1737322062634,0.10050067,104770.0,104750.0,0.095465]
[1737322062838,0.095456,104760.0,104740.0,0.2882465]
[1737322063041,0.38684467,104770.0,104750.0,0.286384]
[1737322063243,0.00050067,104770.0,104760.0,0.18996949]
[1737322063652,0.1,104820.0,104770.0,0.3]
[1737322063888,0.50547444,104850.0,104800.0,0.14549106]
[1737322063889,0.46822897,104840.0,104800.0,0.14549106]
[1737322064119,0.08273145,104850.0,104840.0,0.095383]
[1737322064332,0.08273145,104850.0,104840.0,0.48538755]
[1737322064564,0.06695293,104850.0,104840.0,0.63538755]
[1737322064772,0.49097196,104860.0,104850.0,0.395374]
[1737322064975,0.49097196,104860.0,104850.0,0.63537855]
[1737322065176,0.44162226,104860.0,104850.0,0.63537855]
[1737322065381,0.0001503,104860.0,104850.0,0.63537855]
[1737322066128,0.0001503,104860.0,104850.0,0.33988749]
[1737322066327,0.0001503,104860.0,104850.0,0.18988749]
[1737322066530,0.0001503,104860.0,104850.0,0.19113629]
[1737322067232,0.0001503,104860.0,104850.0,0.34113629]
[1737322067443,0.0001503,104860.0,104850.0,0.19113629]
[1737322067639,0.0001503,104860.0,104850.0,0.34113629]
[1737322067852,0.0001503,104860.0,104850.0,0.0966228]
[1737322068056,0.0001503,104860.0,104850.0,0.34113629]
[1737322068225,0.0001503,104860.0,104850.0,0.48662735]
[1737322069622,0.0001503,104860.0,104850.0,0.34113629]
[1737322070394,0.36840031,104910.0,104900.0,0.095328]
[1737322070528,0.36840031,104910.0,104870.0,0.340697]
[1737322070529,0.56422451,104910.0,104890.0,0.285996]
[1737322070727,0.56422451,104910.0,104900.0,0.00127461]
[1737322070728,0.749378,104910.0,104900.0,0.00127461]
[1737322070956,0.286041,104880.0,104860.0,0.47679]
[1737322071160,0.095378,104850.0,104830.0,0.095388]
[1737322071365,0.476887,104850.0,104830.0,0.18990249]
[1737322071539,0.576885,104850.0,104830.0,0.095388]
[1737322071789,0.576885,104850.0,104830.0,0.095391]
[1737322071790,0.576888,104850.0,104830.0,0.095391]
[1737322071927,0.190767,104840.0,104810.0,0.381629]
[1737322072202,0.386153,104840.0,104820.0,0.286197]
[1737322072368,0.095392,104830.0,104820.0,0.095394]
[1737322072575,0.095392,104830.0,104820.0,0.0001503]
[1737322072776,0.19109787,104830.0,104820.0,0.0001503]
[1737322072978,0.26289787,104830.0,104820.0,0.0001503]
[1737322073181,0.63790549,104830.0,104820.0,0.0001503]
[1737322073767,0.33790549,104830.0,104820.0,0.0001503]
[1737322075677,0.63790549,104830.0,104820.0,0.0001503]
[1737322076493,0.09544,104780.0,104770.0,0.01038025]
[1737322076692,0.195439,104780.0,104770.0,0.01053035]
[1737322076892,0.195439,104780.0,104770.0,0.00136123]
[1737322078184,0.1,104790.0,104770.0,0.00136123]
[1737322078398,0.19662286,104790.0,104770.0,0.09680123]
[1737322078604,0.386288,104790.0,104770.0,0.09680123]
[1737322078802,0.19543,104790.0,104770.0,0.28769423]
[1737322079012,0.19543,104790.0,104780.0,0.095438]
[1737322079349,0.19043,104790.0,104780.0,0.00125335]
[1737322079953,0.19113637,104790.0,104780.0,0.00125335]
[1737322080139,0.31853637,104790.0,104780.0,0.00125335]
[1737322080344,0.64034349,104790.0,104780.0,0.00125335]
[1737322080572,0.190456,104760.0,104750.0,0.20997696]
[1737322080774,0.33076949,104760.0,104750.0,0.20997696]
[1737322080975,0.23576949,104760.0,104750.0,0.20997696]
[1737322081186,0.25876949,104760.0,104750.0,0.20997696]
[1737322081386,0.25876949,104760.0,104740.0,0.38277433]
[1737322081387,0.245465,104750.0,104740.0,0.00481579]
[1737322081592,0.18997849,104750.0,104740.0,0.00481579]
[1737322081804,0.095474,104740.0,104730.0,1.579e-05]
[1737322082005,0.213483,104730.0,104720.0,0.0160398]
[1737322082202,0.21299649,104730.0,104720.0,0.0160398]
[1737322082602,0.30022874,104730.0,104720.0,0.0160398]
[1737322082806,0.36314643,104730.0,104720.0,0.0160398]
[1737322083425,0.09552,104690.0,104680.0,0.41128671]
[1737322083617,0.19052,104690.0,104680.0,0.41128671]
[1737322083855,0.095,104690.0,104680.0,0.41128671]
[1737322084065,0.17730756,104690.0,104680.0,0.50681571]
[1737322084272,0.27212,104690.0,104680.0,0.41128671]
[1737322084485,0.095,104690.0,104680.0,0.41128671]
[1737322084703,0.09514985,104690.0,104680.0,0.31991418]
[1737322084912,0.09514985,104690.0,104680.0,0.03332818]
[1737322085117,0.00014985,104690.0,104680.0,0.12885718]
[1737322086151,0.00014985,104690.0,104680.0,0.0344828]
[1737322086354,0.09514985,104690.0,104680.0,0.0344828]
[1737322086555,0.24248443,104690.0,104680.0,0.0344828]
[1737322086970,0.62408443,104690.0,104680.0,0.0344828]
[1737322087188,0.64708443,104690.0,104680.0,0.0344828]
[1737322087413,1.02408443,104690.0,104680.0,0.00158423]
[1737322087618,0.91283734,104690.0,104680.0,0.00158423]
[1737322087835,0.76283734,104690.0,104680.0,0.00158423]
[1737322088035,0.46283734,104690.0,104680.0,0.00158423]
[1737322088481,0.095,104680.0,104670.0,0.09878423]
[1737322088671,0.00014985,104690.0,104680.0,0.095529]
[1737322088876,0.09566985,104690.0,104670.0,0.57645323]
[1737322089070,0.09566985,104690.0,104670.0,0.38537823]
[1737322089071,0.38171085,104690.0,104670.0,0.38537823]
[1737322089290,0.66726534,104690.0,104670.0,0.19431623]
[1737322089496,0.095,104680.0,104670.0,0.19431623]
[1737322089837,0.09470334,104690.0,104680.0,0.095529]
[1737322089838,0.00018985,104690.0,104680.0,0.095529]
[1737322090096,0.19071785,104690.0,104670.0,0.19432123]
[1737322090214,0.190529,104680.0,104670.0,0.09878423]
[1737322090424,0.268029,104680.0,104670.0,0.09878423]
[1737322090622,0.26754249,104680.0,104670.0,0.09878423]
[1737322090858,0.29054249,104680.0,104670.0,0.09878423]
[1737322091194,0.69054249,104680.0,104670.0,0.09995133]
[1737322091395,0.69054249,104680.0,104670.0,0.09878423]
[1737322091596,0.29054249,104680.0,104670.0,0.09878423]
[1737322091799,0.26754249,104680.0,104670.0,0.09994728]
[1737322092215,0.29050249,104680.0,104670.0,0.09994728]
[1737322092419,0.0775,104680.0,104670.0,0.09994728]
[1737322092629,0.1725,104680.0,104670.0,0.09994728]
[1737322092788,0.36254249,104680.0,104670.0,0.09994728]
[1737322092989,0.26754249,104680.0,104670.0,0.09994728]
[1737322093229,0.09451349,104680.0,104670.0,0.19548528]
[1737322093436,0.095,104680.0,104670.0,0.19548528]
[1737322093650,0.095,104680.0,104670.0,0.38655428]
[1737322094045,0.095,104680.0,104670.0,0.09994728]
[1737322094871,0.190529,104680.0,104670.0,0.09994728]
[1737322095183,0.21304249,104680.0,104670.0,0.09994728]
[1737322095794,0.21304249,104680.0,104670.0,0.14994728]
[1737322095918,0.48824249,104680.0,104670.0,0.07184728]
[1737322096125,0.48824249,104680.0,104670.0,0.02184728]
[1737322097006,0.718538,104670.0,104660.0,0.000428]
[1737322097237,0.90756498,104670.0,104660.0,0.000428]
[1737322097366,0.36305149,104670.0,104660.0,0.000428]
[1737322097575,0.21305149,104670.0,104660.0,0.00168181]
[1737322097775,0.19005149,104670.0,104660.0,0.000428]
[1737322097999,0.095,104680.0,104660.0,0.38384581]
[1737322098197,0.190529,104680.0,104660.0,0.38384581]
[1737322098399,0.095,104680.0,104670.0,0.095538]
[1737322098777,0.19070985,104690.0,104670.0,0.47879778]
[1737322098983,0.38174985,104690.0,104670.0,0.28773178]
[1737322099782,0.19070985,104690.0,104670.0,0.47880678]
[1737322099991,0.19070985,104690.0,104670.0,0.28773178]
[1737322100191,0.38174985,104690.0,104670.0,0.28773178]
[1737322100391,0.190529,104680.0,104670.0,0.00113978]
[1737322100627,0.19004249,104680.0,104670.0,0.00113978]
[1737322101355,0.21304249,104680.0,104670.0,0.00113978]
[1737322102140,0.818538,104670.0,104660.0,0.000428]
[1737322102348,0.91305149,104670.0,104660.0,0.000428]
[1737322102539,1.00756498,104670.0,104660.0,0.00341593]
[1737322102746,0.91305149,104670.0,104660.0,0.00341593]
[1737322103303,0.66305149,104670.0,104660.0,0.00341593]
[1737322103501,0.91305149,104670.0,104660.0,0.00341593]
[1737322103706,0.66305149,104670.0,104660.0,0.00341593]
[1737322103869,0.91305149,104670.0,104660.0,0.00341593]
[1737322104071,0.90756498,104670.0,104660.0,9.3e-07]
[1737322104301,0.495,104660.0,104640.0,0.00484111]
[1737322104502,0.49126949,104650.0,104640.0,1.1e-07]
[1737322104705,0.245574,104630.0,104620.0,0.01608049]
[1737322104909,0.36308749,104630.0,104620.0,0.01608049]
[1737322105133,0.85760098,104630.0,104620.0,0.01608049]
[1737322105249,0.90760098,104630.0,104620.0,0.01608049]
[1737322105452,0.75760098,104630.0,104620.0,0.01608049]
[1737322105906,0.7577507,104630.0,104620.0,0.01608049]
[1737322106118,0.368584,104620.0,104610.0,0.0002]
[1737322106264,0.245602,104600.0,104590.0,0.000112]
[1737322106656,0.36311549,104600.0,104590.0,0.000112]
[1737322106880,0.245611,104590.0,104580.0,0.0266168]
[1737322107088,0.46832449,104590.0,104580.0,0.0266168]
[1737322107288,0.34132449,104590.0,104580.0,0.0266168]
[1737322107485,0.42369994,104590.0,104580.0,0.0015]